bitfinex/quotes_BTCUSD_20230906
["timestamp","ask_amount","ask_price","bid_price","bid_amount"]
[1694018842088,0.32820524,25613.0,25612.0,2.84929427]
[1694018842843,0.14059294,25613.0,25612.0,2.84929427]
[1694018843055,0.14059294,25613.0,25612.0,2.2042674]
[1694018843495,0.14059294,25613.0,25612.0,2.9851504]
[1694018843686,0.14059294,25613.0,25612.0,2.2042674]
[1694018844035,0.14159294,25613.0,25612.0,2.2182674]
[1694018844240,0.14159294,25613.0,25612.0,2.2352674]
[1694018845729,0.001,25613.0,25612.0,2.2352674]
[1694018847493,0.001,25613.0,25612.0,3.0161504]
[1694018847849,0.001,25613.0,25612.0,2.2352674]
[1694018848259,0.001,25613.0,25612.0,3.0161504]
[1694018849822,0.001,25613.0,25612.0,3.7970334]
[1694018850021,0.001,25613.0,25612.0,4.04413264]
[1694018850258,0.001,25613.0,25612.0,4.36713264]
[1694018851068,0.001,25613.0,25612.0,4.77813264]
[1694018851480,0.23411536,25619.0,25617.0,0.02]
[1694018851641,0.23411536,25619.0,25618.0,2.442103]
[1694018851834,0.09352242,25619.0,25618.0,2.442103]
[1694018852125,0.09352242,25619.0,25618.0,1.84069416]
[1694018852345,1.04976112,25620.0,25618.0,1.05999316]
[1694018853180,0.90916818,25620.0,25618.0,1.05999316]
[1694018853383,0.90916818,25620.0,25618.0,0.27929216]
[1694018853586,1.06056818,25620.0,25618.0,0.27929216]
[1694018853794,0.96704576,25620.0,25618.0,0.27929216]
[1694018854416,1.74769076,25620.0,25618.0,0.27929216]
[1694018854825,0.001,25619.0,25618.0,1.08099016]
[1694018855032,0.96704576,25620.0,25618.0,0.905698]
[1694018855210,0.96804576,25620.0,25618.0,0.917698]
[1694018855414,0.96804576,25620.0,25618.0,0.892698]
[1694018855841,0.96804576,25620.0,25618.0,0.909698]
[1694018858497,0.96804576,25620.0,25618.0,0.129]
[1694018858714,1.74868576,25620.0,25618.0,0.129]
[1694018859140,2.01418576,25620.0,25618.0,0.129]
[1694018859352,2.13628576,25620.0,25618.0,0.129]
[1694018859567,2.91692576,25620.0,25618.0,0.129]
[1694018860599,2.91692076,25620.0,25618.0,0.129]
[1694018861623,3.69756076,25620.0,25618.0,0.129]
[1694018862244,2.91692076,25620.0,25618.0,0.129]
[1694018869082,2.13628076,25620.0,25618.0,0.129]
[1694018869293,2.01418076,25620.0,25618.0,0.129]
[1694018872247,2.01418076,25620.0,25618.0,0.909699]
[1694018872826,2.01418076,25620.0,25618.0,0.129]
[1694018877370,2.01418076,25620.0,25618.0,0.129]
[1694018878621,0.45290076,25620.0,25618.0,1.9395182]
[1694018880144,0.4379,25620.0,25618.0,1.9395182]
[1694018880295,0.45290076,25620.0,25618.0,1.9395182]
[1694018880926,0.45290076,25620.0,25618.0,1.690399]
[1694018881300,1.23354276,25620.0,25618.0,1.690399]
[1694018881906,0.45290076,25620.0,25618.0,1.690399]
[1694018883024,0.45290076,25620.0,25619.0,0.03295582]
[1694018883204,0.45290076,25620.0,25619.0,0.13295582]
[1694018884153,0.45190076,25620.0,25619.0,0.13295582]
[1694018884360,1.23254076,25620.0,25619.0,0.14995582]
[1694018884560,1.23354076,25620.0,25619.0,0.16195582]
[1694018885475,0.45290076,25620.0,25619.0,0.16195582]
[1694018885828,0.54642318,25620.0,25619.0,0.16195582]
[1694018886299,1.32706318,25620.0,25619.0,0.16195582]
[1694018886845,0.54642318,25620.0,25619.0,0.16195582]
[1694018888811,0.28092318,25620.0,25619.0,1.72329582]
[1694018889416,0.12952318,25620.0,25619.0,1.72329582]
[1694018889829,0.27011612,25620.0,25619.0,1.72329582]
[1694018890886,0.1765937,25620.0,25619.0,1.72329582]
[1694018891465,0.1765937,25620.0,25619.0,0.94262582]
[1694018891728,0.364206,25620.0,25619.0,1.273099]
[1694018891917,0.364206,25620.0,25619.0,0.16195582]
[1694018892698,0.22361306,25620.0,25619.0,0.16195582]
[1694018893861,0.27052038,25620.0,25619.0,0.16195582]
[1694018895230,1.05116038,25620.0,25619.0,0.16195582]
[1694018895658,1.20856038,25620.0,25619.0,0.16195582]
[1694018895865,0.97404076,25620.0,25619.0,0.16195582]
[1694018897355,1.75468076,25620.0,25619.0,0.16195582]
[1694018897765,2.03612586,25620.0,25619.0,0.16195582]
[1694018898329,2.81676586,25620.0,25619.0,0.16195582]
[1694018900147,2.03612586,25620.0,25619.0,0.16195582]
[1694018900557,2.81676586,25620.0,25619.0,0.16195582]
[1694018904323,2.75938778,25620.0,25619.0,0.16195582]
[1694018904539,3.66212778,25620.0,25619.0,0.16195582]
[1694018904745,2.88148778,25620.0,25619.0,0.16195582]
[1694018905554,3.66212778,25620.0,25619.0,0.16195582]
[1694018906494,2.88148778,25620.0,25619.0,0.16195582]
[1694018907117,3.66212778,25620.0,25619.0,0.16195582]
[1694018908589,3.43806076,25620.0,25619.0,0.16195582]
[1694018908795,4.03650133,25620.0,25619.0,0.16195582]
[1694018909651,4.03650133,25620.0,25619.0,0.14495582]
[1694018910055,3.75471294,25620.0,25619.0,0.14495582]
[1694018910786,3.99401929,25620.0,25619.0,0.14495582]
[1694018910989,3.99301929,25620.0,25619.0,0.13295582]
[1694018911330,3.99801929,25620.0,25619.0,0.13295582]
[1694018912107,3.75871294,25620.0,25619.0,0.13295582]
[1694018913279,4.01318705,25620.0,25619.0,0.13295582]
[1694018914136,3.75871294,25620.0,25619.0,0.13295582]
[1694018919674,3.75832453,25620.0,25619.0,0.13295582]
[1694018921173,3.98097035,25620.0,25619.0,0.13295582]
[1694018922740,3.66470658,25620.0,25619.0,0.13295582]
[1694018923573,1.82392658,25620.0,25619.0,0.13295582]
[1694018923997,2.60456658,25620.0,25619.0,0.13295582]
[1694018927702,2.88563609,25620.0,25619.0,0.13295582]
[1694018928891,3.00773609,25620.0,25619.0,0.13295582]
[1694018932762,3.78837609,25620.0,25619.0,0.13295582]
[1694018934502,3.56573027,25620.0,25619.0,0.13295582]
[1694018934717,3.28466076,25620.0,25619.0,0.13295582]
[1694018935138,3.43466076,25620.0,25619.0,0.13295582]
[1694018942405,3.71511019,25620.0,25619.0,0.13295582]
[1694018942652,3.75092453,25620.0,25619.0,0.13295582]
[1694018942900,4.1375698,25620.0,25619.0,0.13295582]
[1694018944103,4.1385698,25620.0,25619.0,0.13395582]
[1694018944506,4.3842022,25620.0,25619.0,0.13395582]
[1694018944731,0.32213379,25620.0,25619.0,0.13395582]
[1694018944942,0.006,25620.0,25619.0,2.20404109]
[1694018945150,0.42764317,25620.0,25619.0,3.9857852]
[1694018945359,0.18839416,25620.0,25619.0,3.9857852]
[1694018945610,0.34490958,25620.0,25619.0,3.9877852]
[1694018945828,0.32890958,25620.0,25619.0,3.9857852]
[1694018946038,0.32790958,25620.0,25619.0,3.9847852]
[1694018946249,0.34090958,25620.0,25619.0,4.0087852]
[1694018946458,0.14051542,25620.0,25619.0,4.0077852]
[1694018946675,0.09365467,25620.0,25619.0,4.13378444]
[1694018946906,0.00807292,25624.0,25619.0,4.13378444]
[1694018946907,0.32787617,25623.0,25622.0,0.02]
[1694018947137,0.14048201,25623.0,25622.0,3.75106127]
[1694018947340,0.19546708,25624.0,25622.0,3.75106127]
[1694018947341,0.33594909,25624.0,25622.0,4.09659459]
[1694018947557,0.14048201,25623.0,25622.0,3.70994932]
[1694018947765,0.19546708,25624.0,25622.0,4.11959459]
[1694018947766,0.14855493,25624.0,25622.0,4.11959459]
[1694018947973,0.14855493,25624.0,25623.0,0.53174527]
[1694018948177,0.33594909,25624.0,25623.0,2.97338927]
[1694018948382,0.33594909,25624.0,25623.0,3.1092454]
[1694018948587,0.14855493,25624.0,25623.0,3.1092454]
[1694018949204,0.00807292,25624.0,25623.0,3.1092454]
[1694018949374,0.00907292,25624.0,25623.0,3.1342454]
[1694018950190,0.00807292,25624.0,25623.0,3.1092454]
[1694018950511,0.00807292,25624.0,25623.0,3.1342454]
[1694018951096,0.00807292,25624.0,25623.0,3.1092454]
[1694018951338,0.00807292,25624.0,25623.0,3.1342454]
[1694018952164,0.00907292,25624.0,25623.0,3.1592454]
[1694018953210,0.00907292,25624.0,25623.0,3.0371454]
[1694018955499,0.00907292,25624.0,25623.0,3.0141454]
[1694018959393,0.00907292,25624.0,25623.0,2.09774127]
[1694018959596,0.00907292,25624.0,25623.0,1.31719327]
[1694018960411,0.00907292,25624.0,25623.0,0.53664527]
[1694018960592,0.00907292,25624.0,25623.0,1.31719327]
[1694018960931,0.00907292,25624.0,25623.0,3.65883727]
[1694018961133,0.00907292,25624.0,25623.0,4.24432092]
[1694018964172,0.00907292,25624.0,25623.0,4.22432092]
[1694018966053,0.00907292,25624.0,25623.0,3.44377292]
[1694018966260,0.00907292,25624.0,25623.0,2.91828927]
[1694018967822,0.00907292,25624.0,25623.0,2.87828927]
[1694018968024,0.00907292,25624.0,25623.0,2.91828927]
[1694018972934,0.00907292,25624.0,25623.0,2.94762239]
[1694018974636,0.00907292,25624.0,25623.0,2.16707439]
[1694018975788,0.00907292,25624.0,25623.0,2.94762239]
[1694018978832,0.00907292,25624.0,25623.0,3.72817039]
[1694018987717,0.00907292,25624.0,25623.0,3.85027039]
[1694018991440,0.00907292,25624.0,25623.0,3.87327039]
[1694018991721,0.2536,25630.0,25628.0,0.04]
[1694018991926,0.36658857,25633.0,25630.0,0.04]
[1694018992134,0.0196,25633.0,25632.0,0.1221]
[1694018992347,0.0196,25633.0,25632.0,3.42356727]
[1694018992568,0.0196,25633.0,25632.0,3.74356727]
[1694018992788,0.0196,25633.0,25632.0,3.82856651]
[1694018993422,0.0196,25633.0,25632.0,4.03580651]
[1694018993634,0.0196,25633.0,25632.0,4.44366809]
[1694018993844,0.0196,25633.0,25632.0,4.44132809]
[1694018994044,0.0196,25633.0,25632.0,4.43976809]
[1694018994253,0.0196,25633.0,25632.0,4.3463348]
[1694018994432,0.0196,25633.0,25632.0,4.3463948]
[1694018994668,0.0196,25633.0,25632.0,4.3694148]
[1694018994881,0.0196,25633.0,25632.0,4.3656948]
[1694018995087,0.0196,25633.0,25632.0,4.3833148]
[1694018995292,0.0196,25633.0,25632.0,4.2658148]
[1694018995687,0.0196,25633.0,25632.0,4.2908148]
[1694018995924,0.0196,25633.0,25632.0,4.2658148]
[1694018996605,0.0196,25633.0,25632.0,4.2908148]
[1694018996811,0.0196,25633.0,25632.0,4.3158148]
[1694018997224,0.0196,25633.0,25632.0,4.2908148]
[1694018997427,0.0196,25633.0,25632.0,3.8798148]
[1694018997850,0.0196,25633.0,25632.0,4.3158148]
[1694019000647,0.0196,25633.0,25632.0,3.46756651]
[1694019001709,0.0196,25633.0,25632.0,3.41756651]
[1694019002195,0.0196,25633.0,25632.0,3.44256651]
[1694019002433,0.0196,25633.0,25632.0,3.41756651]
[1694019002986,0.0196,25633.0,25632.0,3.41956651]
[1694019003233,0.0196,25633.0,25632.0,3.83121178]
[1694019003478,0.0196,25633.0,25632.0,3.85421178]
[1694019003727,0.0196,25633.0,25632.0,3.82921178]
[1694019003984,0.0196,25633.0,25632.0,3.80421178]
[1694019004471,0.0196,25633.0,25632.0,3.82921178]
[1694019004872,0.0196,25633.0,25632.0,4.58448578]
[1694019005325,0.0196,25633.0,25632.0,4.60948578]
[1694019005784,0.0196,25633.0,25632.0,4.58448578]
[1694019005983,0.0196,25633.0,25632.0,4.60948578]
[1694019006410,0.0196,25633.0,25632.0,4.63448578]
[1694019006870,0.0196,25633.0,25632.0,4.12574051]
[1694019007265,0.0196,25633.0,25632.0,4.24784051]
[1694019010467,0.0196,25633.0,25632.0,4.65884051]
[1694019011875,0.0196,25633.0,25632.0,4.78094051]
[1694019013190,0.0196,25633.0,25632.0,4.85030051]
[1694019013393,0.0196,25633.0,25632.0,5.23610578]
[1694019013594,0.0196,25633.0,25632.0,5.16758578]
[1694019014534,0.0196,25637.0,25636.0,0.53599924]
[1694019014739,0.0196,25637.0,25636.0,5.24640451]
[1694019014950,0.0196,25637.0,25636.0,5.7554128]
[1694019015210,0.0196,25637.0,25636.0,5.7558328]
[1694019015425,0.0196,25639.0,25638.0,0.55599924]
[1694019015638,0.0196,25642.0,25641.0,0.471]
[1694019015850,0.4458,25644.0,25643.0,0.491]
[1694019015851,0.0197,25644.0,25643.0,0.491]
[1694019016074,0.0197,25644.0,25643.0,3.68546151]
[1694019016292,0.0197,25644.0,25643.0,5.24533951]
[1694019017996,0.0197,25644.0,25643.0,5.27033951]
[1694019018408,0.0197,25644.0,25643.0,5.24533951]
[1694019018619,0.0197,25644.0,25643.0,5.57888478]
[1694019018824,0.0197,25644.0,25643.0,5.31498478]
[1694019019005,0.0197,25644.0,25643.0,5.33998478]
[1694019019436,0.0197,25644.0,25643.0,5.31498478]
[1694019019845,0.0197,25644.0,25643.0,5.33998478]
[1694019020668,0.0197,25644.0,25643.0,5.31498478]
[1694019021079,0.0197,25644.0,25643.0,5.33998478]
[1694019021930,0.0197,25644.0,25643.0,5.00643951]
[1694019025257,0.0197,25644.0,25643.0,5.41743951]
[1694019025668,0.1766,25644.0,25643.0,5.41743951]
[1694019026484,0.0197,25644.0,25643.0,5.41743951]
[1694019027522,0.0197,25644.0,25643.0,5.49189951]
[1694019027730,0.0197,25644.0,25643.0,5.87764478]
[1694019027931,0.0197,25644.0,25643.0,5.87464478]
[1694019028134,0.0197,25644.0,25643.0,5.87440478]
[1694019028339,0.0197,25644.0,25643.0,5.87308478]
[1694019028583,0.0197,25644.0,25643.0,5.87122478]
[1694019028787,0.0197,25644.0,25643.0,5.87062478]
[1694019028988,0.0197,25644.0,25643.0,5.87056478]
[1694019029190,0.0197,25644.0,25643.0,5.87374478]
[1694019029392,0.0197,25644.0,25643.0,5.87518478]
[1694019029637,0.0197,25644.0,25643.0,5.87488478]
[1694019029822,0.0197,25644.0,25643.0,5.87392478]
[1694019030039,0.0197,25644.0,25643.0,5.87596478]
[1694019030240,0.0197,25644.0,25643.0,5.87398478]
[1694019030457,0.0197,25644.0,25643.0,5.87518478]
[1694019030665,0.0197,25644.0,25643.0,5.87284478]
[1694019030884,0.0197,25644.0,25643.0,5.87566478]
[1694019031082,0.0197,25644.0,25643.0,5.87560478]
[1694019031316,0.0197,25644.0,25643.0,5.87446478]
[1694019031504,0.0197,25644.0,25643.0,5.87320478]
[1694019031714,0.0197,25644.0,25643.0,5.87290478]
[1694019031920,0.0197,25644.0,25643.0,5.87266478]
[1694019032129,0.0197,25644.0,25643.0,5.80408478]
[1694019033194,0.0197,25644.0,25643.0,5.79908554]
[1694019033421,0.1804,25644.0,25643.0,5.79908554]
[1694019035516,0.1804,25644.0,25643.0,5.38808554]
[1694019035715,0.1804,25644.0,25643.0,5.00144027]
[1694019036365,0.1804,25644.0,25643.0,4.96144027]
[1694019041081,0.0196,25646.0,25643.0,4.96144027]
[1694019041082,0.0196,25646.0,25644.0,0.531]
[1694019041289,0.0196,25646.0,25644.0,4.67535316]
[1694019041492,0.0196,25646.0,25645.0,0.55599924]
[1694019041735,0.0196,25646.0,25645.0,4.99390578]
[1694019042141,0.0196,25646.0,25645.0,4.98890654]
[1694019043512,0.0196,25646.0,25645.0,5.01390654]
[1694019044322,0.0196,25646.0,25645.0,5.03890654]
[1694019045625,0.0196,25646.0,25645.0,4.99890654]
[1694019047620,0.0196,25649.0,25647.0,0.491]
[1694019047825,0.0196,25649.0,25648.0,5.44378027]
[1694019048051,0.2616,25653.0,25652.0,0.491]
[1694019048256,0.2616,25653.0,25652.0,3.63964327]
[1694019048479,0.03500076,25654.0,25653.0,2.398905]
[1694019048687,0.31250076,25654.0,25653.0,3.03065027]
[1694019048810,0.31250076,25654.0,25653.0,4.08613356]
[1694019049011,0.31250076,25654.0,25653.0,4.38113356]
[1694019049207,0.31250076,25654.0,25653.0,4.10528527]
[1694019049419,0.31250076,25654.0,25653.0,3.20355027]
[1694019049620,0.31250076,25654.0,25653.0,3.98318527]
[1694019049823,0.31250076,25654.0,25653.0,4.10528527]
[1694019050034,0.31250076,25654.0,25653.0,4.13028527]
[1694019050224,0.31250076,25654.0,25653.0,4.51693054]
[1694019050675,0.31250076,25654.0,25653.0,4.54193054]
[1694019055835,0.31250076,25654.0,25653.0,4.15528527]
[1694019058865,0.31250076,25654.0,25653.0,4.03318527]
[1694019059768,0.31250076,25654.0,25653.0,4.01018527]
[1694019062868,0.31250076,25654.0,25653.0,4.1590345]
[1694019063071,0.31250076,25654.0,25653.0,4.1820345]
[1694019063307,0.31250076,25654.0,25653.0,4.56867977]
[1694019065447,0.31250076,25654.0,25653.0,4.0599345]
[1694019065656,0.31250076,25654.0,25653.0,3.2572995]
[1694019066492,0.31250076,25654.0,25653.0,4.0369345]
[1694019067346,0.31250076,25654.0,25653.0,4.1820345]
[1694019074951,0.31250076,25654.0,25653.0,4.0599345]
[1694019075604,0.31250076,25654.0,25653.0,3.2572995]
[1694019077753,0.31250076,25654.0,25653.0,0.9183945]
[1694019077962,0.31250076,25654.0,25653.0,0.47674923]
[1694019077963,1.21420576,25654.0,25653.0,0.47674923]
[1694019078147,1.99381076,25654.0,25653.0,0.17674923]
[1694019078276,2.77341576,25654.0,25653.0,0.17674923]
[1694019078475,2.93551576,25654.0,25653.0,0.17674923]
[1694019078693,3.80012076,25654.0,25653.0,0.17674923]
[1694019078898,4.01329637,25654.0,25653.0,0.17674923]
[1694019079812,4.01329637,25654.0,25653.0,0.15174923]
[1694019079996,3.80012076,25654.0,25653.0,0.15174923]
[1694019080167,3.80012076,25654.0,25653.0,0.17674923]
[1694019080377,3.80012076,25654.0,25653.0,0.12674923]
[1694019080795,3.97618576,25654.0,25653.0,0.17174923]
[1694019081148,4.36283103,25654.0,25653.0,0.14674923]
[1694019081341,4.5527408,25654.0,25653.0,0.14674923]
[1694019081552,5.15420555,25654.0,25653.0,0.17174923]
[1694019081752,5.73185018,25654.0,25653.0,0.17174923]
[1694019081966,5.73185018,25654.0,25653.0,2.3e-07]
[1694019081967,5.75177018,25654.0,25653.0,2.3e-07]
[1694019082176,5.75177018,25654.0,25642.0,1.614922]
[1694019082177,0.03500076,25643.0,25642.0,1.614906]
[1694019082384,0.18965887,25643.0,25642.0,2.10155127]
[1694019082811,0.35345887,25643.0,25642.0,2.88152127]
[1694019083028,0.19880076,25643.0,25642.0,2.10155127]
[1694019083236,0.19880076,25643.0,25642.0,1.32159527]
[1694019083437,0.19880076,25643.0,25642.0,0.54164527]
[1694019083642,0.19880076,25643.0,25642.0,1.32161527]
[1694019084054,0.19880076,25643.0,25642.0,2.40158527]
[1694019084264,0.19880076,25643.0,25642.0,2.45058527]
[1694019084265,0.20280076,25643.0,25642.0,2.45058527]
[1694019084985,0.32490076,25643.0,25642.0,2.45058527]
[1694019085185,0.32490076,25643.0,25642.0,2.43058527]
[1694019085592,0.32490076,25643.0,25642.0,3.21055527]
[1694019085593,0.20280076,25643.0,25642.0,3.21055527]
[1694019087741,0.20280076,25643.0,25642.0,3.21055527]
[1694019088293,0.20280076,25643.0,25642.0,2.04394]
[1694019088696,0.20280076,25643.0,25642.0,2.82391]
[1694019089903,0.20280076,25643.0,25642.0,3.21055527]
[1694019091610,0.20280076,25643.0,25642.0,4.3135808]
[1694019091807,0.03900076,25643.0,25642.0,4.3135808]
[1694019092213,0.03900076,25643.0,25642.0,3.99052527]
[1694019092388,0.03900076,25643.0,25642.0,3.21055527]
[1694019095703,0.03900076,25643.0,25642.0,2.43058527]
[1694019096700,0.03900076,25643.0,25642.0,1.65061527]
[1694019097085,0.19390076,25643.0,25642.0,0.87064527]
[1694019097291,0.19390076,25643.0,25642.0,1.65061527]
[1694019097464,0.19390076,25643.0,25642.0,1.63061527]
[1694019097671,0.19390076,25643.0,25642.0,1.65061527]
[1694019098487,0.19390076,25643.0,25642.0,0.149]
[1694019098488,2.23424662,25643.0,25642.0,0.149]
[1694019098662,3.01418562,25643.0,25642.0,0.149]
[1694019100284,4.18076989,25643.0,25642.0,0.149]
[1694019100704,3.79412462,25643.0,25642.0,0.149]
[1694019112571,3.01418562,25643.0,25642.0,0.149]
[1694019114800,0.02,25634.0,25633.0,0.14798228]
[1694019115050,1.09197187,25634.0,25633.0,0.48664527]
[1694019115299,3.92425614,25634.0,25633.0,1.2249342]
[1694019115540,4.47390141,25634.0,25633.0,0.1]
[1694019116019,4.4192433,25634.0,25633.0,0.1]
[1694019116754,0.02,25628.0,25627.0,0.019796]
[1694019116993,0.29675811,25628.0,25627.0,0.119796]
[1694019117235,0.1421,25628.0,25627.0,0.119796]
[1694019117466,0.31150076,25628.0,25627.0,0.119796]
[1694019118121,0.31350076,25628.0,25627.0,0.143796]
[1694019118917,0.31550076,25628.0,25627.0,0.167796]
[1694019120513,1.35510244,25628.0,25627.0,0.167796]
[1694019120714,3.38753971,25628.0,25627.0,0.167796]
[1694019120919,3.00089444,25628.0,25627.0,0.167796]
[1694019121328,2.22049844,25628.0,25627.0,0.167796]
[1694019126956,2.20049844,25628.0,25627.0,0.167796]
[1694019130182,0.03900076,25628.0,25627.0,2.26039327]
[1694019130387,0.03900076,25628.0,25627.0,2.4919326]
[1694019130609,0.03900076,25628.0,25627.0,3.04081927]
[1694019132244,0.03900076,25628.0,25627.0,2.26039327]
[1694019133012,0.03900076,25628.0,25627.0,1.47996727]
[1694019133566,0.03900076,25628.0,25627.0,2.26039327]
[1694019139733,0.03900076,25628.0,25627.0,2.26039327]
[1694019139927,0.03900076,25628.0,25627.0,2.23739327]
[1694019140138,0.03900076,25628.0,25627.0,0.67654127]
[1694019141193,0.03900076,25628.0,25627.0,0.55444127]
[1694019145095,0.81939676,25628.0,25627.0,0.55444127]
[1694019145297,1.75459276,25628.0,25627.0,0.55444127]
[1694019145533,0.97419676,25628.0,25627.0,0.55444127]
[1694019146694,0.19380076,25628.0,25627.0,0.55444127]
[1694019146967,0.97419676,25628.0,25627.0,0.55444127]
[1694019147377,1.75459276,25628.0,25627.0,0.55444127]
[1694019148082,1.75459276,25628.0,25627.0,0.167796]
[1694019148083,2.88764493,25628.0,25627.0,0.167796]
[1694019148352,2.89264493,25628.0,25627.0,0.167796]
[1694019148559,3.67304093,25628.0,25627.0,0.167796]
[1694019153083,3.67304093,25628.0,25627.0,0.19526464]
[1694019153497,3.44248476,25628.0,25627.0,0.19526464]
[1694019153716,3.69571357,25628.0,25627.0,0.19526464]
[1694019154822,3.69371357,25628.0,25627.0,0.17126464]
[1694019155015,3.69671357,25628.0,25627.0,0.17126464]
[1694019155238,3.69471357,25628.0,25627.0,0.14726464]
[1694019155450,3.69171357,25628.0,25627.0,0.14726464]
[1694019155671,3.94613003,25628.0,25627.0,0.14926464]
[1694019156110,3.94613003,25628.0,25627.0,0.15226464]
[1694019156519,3.94613003,25628.0,25627.0,0.14926464]
[1694019157486,4.01789003,25628.0,25627.0,0.14926464]
[1694019158082,4.02971003,25628.0,25627.0,0.15126464]
[1694019158325,4.02923003,25628.0,25627.0,0.15126464]
[1694019158559,4.02887003,25628.0,25627.0,0.15126464]
[1694019158811,4.02875003,25628.0,25627.0,0.15126464]
[1694019159022,4.02851003,25628.0,25627.0,0.15126464]
[1694019159247,4.02833003,25628.0,25627.0,0.15126464]
[1694019159500,4.02809003,25628.0,25627.0,0.15126464]
[1694019159745,4.06935003,25628.0,25627.0,0.15126464]
[1694019159984,4.06971003,25628.0,25627.0,0.15126464]
[1694019160225,4.07247003,25628.0,25627.0,0.15126464]
[1694019160462,4.06917003,25628.0,25627.0,0.15126464]
[1694019160910,4.06935003,25628.0,25627.0,0.15126464]
[1694019161111,4.06959003,25628.0,25627.0,0.15126464]
[1694019161348,4.06803003,25628.0,25627.0,0.15126464]
[1694019161586,4.06809003,25628.0,25627.0,0.15126464]
[1694019161860,4.4949553,25628.0,25627.0,0.15126464]
[1694019162107,4.4939953,25628.0,25627.0,0.15126464]
[1694019162406,4.4941753,25628.0,25627.0,0.15126464]
[1694019162679,4.4953153,25628.0,25627.0,0.15126464]
[1694019162928,4.4974753,25628.0,25627.0,0.15126464]
[1694019163169,4.4971153,25628.0,25627.0,0.15126464]
[1694019163427,4.4976553,25628.0,25627.0,0.15126464]
[1694019163670,4.4945353,25628.0,25627.0,0.15126464]
[1694019163943,4.4895553,25628.0,25627.0,0.15126464]
[1694019164163,4.4899153,25628.0,25627.0,0.15126464]
[1694019164414,4.4771353,25628.0,25627.0,0.14926464]
[1694019164657,4.4801353,25628.0,25627.0,0.14726464]
[1694019164916,4.5038953,25628.0,25627.0,0.14826464]
[1694019165147,4.4843953,25628.0,25627.0,0.14826464]
[1694019165395,4.5082153,25628.0,25627.0,0.14826464]
[1694019165626,4.5080953,25628.0,25627.0,0.14826464]
[1694019165858,4.5070753,25628.0,25627.0,0.14826464]
[1694019166104,4.5078553,25628.0,25627.0,0.14826464]
[1694019166349,4.5056353,25628.0,25627.0,0.14826464]
[1694019166585,4.5059953,25628.0,25627.0,0.14826464]
[1694019166823,4.5058753,25628.0,25627.0,0.14826464]
[1694019167069,4.5058153,25628.0,25627.0,0.14826464]
[1694019167369,4.4990953,25628.0,25627.0,0.14826464]
[1694019167562,4.4969353,25628.0,25627.0,0.14826464]
[1694019167825,4.4958553,25628.0,25627.0,0.14826464]
[1694019168061,4.4994553,25628.0,25627.0,0.14826464]
[1694019168571,4.5019753,25628.0,25627.0,0.14826464]
[1694019168799,4.5020353,25628.0,25627.0,0.14826464]
[1694019169288,4.5008953,25628.0,25627.0,0.14826464]
[1694019169500,4.5022753,25628.0,25627.0,0.14826464]
[1694019169662,4.5027553,25628.0,25627.0,0.14826464]
[1694019169924,4.5028753,25628.0,25627.0,0.14826464]
[1694019170194,4.5148753,25628.0,25627.0,0.14826464]
[1694019170403,4.5143353,25628.0,25627.0,0.14826464]
[1694019170608,4.5154153,25628.0,25627.0,0.14826464]
[1694019170815,4.5119353,25628.0,25627.0,0.14826464]
[1694019170993,4.5188953,25628.0,25627.0,0.14826464]
[1694019171187,4.5161953,25628.0,25627.0,0.14826464]
[1694019171387,4.5113953,25628.0,25627.0,0.14826464]
[1694019171589,4.5116953,25628.0,25627.0,0.14826464]
[1694019171754,4.5119953,25628.0,25627.0,0.14826464]
[1694019171954,4.5119353,25628.0,25627.0,0.14826464]
[1694019172355,4.5095953,25628.0,25627.0,0.14826464]
[1694019172576,4.5113953,25628.0,25627.0,0.14826464]
[1694019172800,4.5082753,25628.0,25627.0,0.14826464]
[1694019172998,4.5082153,25628.0,25627.0,0.14826464]
[1694019173197,4.5081553,25628.0,25627.0,0.14826464]
[1694019173399,4.5081553,25628.0,25627.0,0.14819545]
[1694019173400,4.5079753,25628.0,25627.0,0.14819545]
[1694019173675,4.5064753,25628.0,25627.0,0.14819545]
[1694019173857,4.4962153,25628.0,25627.0,0.14819545]
[1694019174008,4.5810624,25628.0,25627.0,0.14819545]
[1694019174215,4.4879353,25628.0,25627.0,0.14819545]
[1694019174417,4.4197753,25628.0,25627.0,0.14819545]
[1694019174623,4.6252753,25628.0,25627.0,0.14819545]
[1694019175002,4.7182224,25628.0,25627.0,0.14819545]
[1694019175183,4.7196024,25628.0,25627.0,0.14819545]
[1694019175399,4.6944024,25628.0,25627.0,0.14819545]
[1694019175618,4.4787553,25628.0,25627.0,0.14819545]
[1694019175824,4.4786953,25628.0,25627.0,0.14819545]
[1694019175970,4.4782753,25628.0,25627.0,0.14819545]
[1694019176169,4.4551153,25628.0,25627.0,0.14719545]
[1694019176381,4.4804353,25628.0,25627.0,0.14719545]
[1694019176582,4.4803753,25628.0,25627.0,0.14719545]
[1694019176789,4.4564353,25628.0,25627.0,0.14719545]
[1694019177135,4.4802553,25628.0,25627.0,0.14819545]
[1694019177273,4.4785153,25628.0,25627.0,0.14819545]
[1694019177481,4.4528953,25628.0,25627.0,0.14719545]
[1694019177697,4.4709553,25628.0,25627.0,0.14819545]
[1694019177896,4.4782153,25628.0,25627.0,0.14819545]
[1694019178256,4.4788153,25628.0,25627.0,0.14819545]
[1694019178458,4.4942953,25628.0,25627.0,0.14819545]
[1694019178691,4.5866424,25628.0,25627.0,0.14819545]
[1694019178926,4.4934553,25628.0,25627.0,0.14819545]
[1694019179154,4.4933953,25628.0,25627.0,0.14819545]
[1694019179363,4.4934553,25628.0,25627.0,0.14819545]
[1694019179570,4.4932753,25628.0,25627.0,0.14819545]
[1694019179775,4.4933353,25628.0,25627.0,0.14819545]
[1694019179997,4.4932753,25628.0,25627.0,0.14819545]
[1694019180205,4.4933353,25628.0,25627.0,0.14819545]
[1694019180411,4.4932153,25628.0,25627.0,0.14819545]
[1694019180590,4.5867024,25628.0,25627.0,0.14819545]
[1694019180799,4.5891024,25628.0,25627.0,0.14819545]
[1694019181205,4.5890424,25628.0,25627.0,0.14819545]
[1694019181405,4.5864624,25628.0,25627.0,0.14819545]
[1694019181606,4.64782492,25628.0,25627.0,0.14819545]
[1694019181737,4.64830492,25628.0,25627.0,0.14819545]
[1694019181936,4.5876024,25628.0,25627.0,0.14819545]
[1694019182221,4.46527448,25628.0,25627.0,0.14819545]
[1694019182357,3.69606211,25628.0,25627.0,0.14819545]
[1694019182555,0.10800076,25628.0,25627.0,0.14819545]
[1694019182760,1.66879276,25628.0,25627.0,0.14819545]
[1694019183117,2.44918876,25628.0,25627.0,0.14819545]
[1694019183771,2.42518876,25628.0,25627.0,0.14719545]
[1694019183970,2.44918876,25628.0,25627.0,0.14819545]
[1694019184578,2.42518876,25628.0,25627.0,0.14719545]
[1694019184812,2.38118876,25628.0,25627.0,0.14719545]